Cogmind - Beta 13 @@@ ROGUE MODE // 2024.06.01 @ 20:32:36 Player: Kat Result: Self-destructed Performance ------------- Evolutions (1) 500 Regions Visited (2) 400 Robots Destroyed (19) 95 Value Destroyed (344) 344 Prototype IDs (0) 0 Alien Tech Used (0) 0 Bonus (0) 0 TOTAL SCORE: 1339 Bonus ------- None Cogmind --------- Core Integrity 200/400 Matter 289/300 Energy 100/100 System Corruption 0% Temperature Cool (0) Movement Core (350) Ox6 Location -9/Materials Parts ------- > --- POWER (1) -------- (None) > --- PROPULSION (2) --- (None) > --- UTILITY (4) ------ Large Storage Unit > --- WEAPON (2) ------- Light Assault Rifle > --- INVENTORY (15) --- Ion Engine Signal Interpreter Light Assault Rifle Light Assault Rifle Light Assault Rifle Peak State ------------ > --- POWER ------------ Light Ion Engine > --- PROPULSION ------- Armored Wheel Armored Wheel > --- UTILITY ---------- Large Storage Unit Propulsion Shielding Weapon Shielding Light Armor Plating > --- WEAPON ----------- Light Assault Rifle Light Assault Rifle > --- INVENTORY -------- Ion Engine Sensor Array Signal Interpreter Light Assault Rifle [Rating: 11] Favorites ----------- Power Light Ion Engine Engine Light Ion Engine Propulsion Armored Wheel Treads Light Treads Wheel Armored Wheel Utility Weapon Shielding Device Sensor Array Storage Small Storage Unit Protection Weapon Shielding Weapon Light Assault Rifle Ballistic Gun Light Assault Rifle Build | -11 -10 -9 ------- Run | Yrd Mat Mat Slots Evolved 2 | . . 2 Power . | . . . Propulsion . | . . . Utility 2 | . . 2 Weapon . | . . . Parts Attached 18 | 5 3 10 Power 1 | . . 1 Engine 1 | . . 1 Core . | . . . Reactor . | . . . Propulsion 6 | 2 2 2 Treads 2 | 2 . . Leg . | . . . Wheel 4 | . 2 2 Hover . | . . . Flight . | . . . Utility 7 | 1 1 5 Device 1 | . . 1 Storage 2 | 1 . 1 Processor . | . . . Hackware . | . . . Protection 4 | . 1 3 Artifact . | . . . Weapon 4 | 2 . 2 Energy Gun . | . . . Energy Cannon . | . . . Ballistic Gun 4 | 2 . 2 Ballistic Cannon . | . . . Launcher . | . . . Special Weapon . | . . . Impact Weapon . | . . . Slashing Weapon . | . . . Piercing Weapon . | . . . Special Melee Weapon . | . . . Unidentified Prototypes . | . . . Parts Lost 10 | . . 10 Power 1 | . . 1 Propulsion 2 | . . 2 Utility 4 | . . 4 Weapon 3 | . . 3 Highest Loss Streak 5 | . . 5 To Critical Strikes . | . . . Average Slot Usage (%) 79 | . 77 80 Engine 1 | . . 2 Treads 2 | . 6 . Wheel 21 | . 20 21 Device 2 | . . 4 Storage 12 | . 14 11 Protection 16 | . 7 20 Ballistic Gun 23 | . 28 21 Naked Turns . | . . . Heaviest Build 28 | 7 8 28 Greatest Support 40 | 40 40 24 Greatest Overweight (x) 2 | . 2 1 Average Overweight (x) . | . . . Largest Inventory Capacity 15 | 8 8 15 Average Capacity 10 | 7 8 12 Most Carried 8 | 5 6 8 Average Carried 4 | 1 3 5 Final Capacity 15 | 8 8 15 Final Carried 5 | 1 5 5 Class Distribution -------------------- 100% | Mutant Dominant Class ---------------- Mutant | -10/Materials Mutant | -9/Materials Resources | -11 -10 -9 ----------- Run | Yrd Mat Mat Matter Collected 522 | 239 69 214 Remotely . | . . . Salvage Created 508 | . 96 412 Parts 54 | . 12 42 Haulers Intercepted 1 | . . 1 Recyclers Shooed 2 | . 1 1 Parts Field Recycled . | . . . Retrieved Matter . | . . . Parts Self-Destructed . | . . . Prevented . | . . . Kills | -11 -10 -9 ------- Run | Yrd Mat Mat Combat Hostiles Destroyed 14 | . 3 11 Guns 14 | . 3 11 Classes Destroyed 7 | . 3 4 Worker 1 | . . 1 Hauler 1 | . . 1 Operator 1 | . 1 . Watcher 2 | . 1 1 Swarmer 9 | . 3 6 Grunt 2 | . . 2 Sentry 3 | . . 3 Best Kill Streak 3 | . 3 3 Combat Bots Only 3 | . 3 3 Max Kills in Single Turn 2 | . 1 2 Gunslinging 1 | . . 1 Exploded . | . . . Melee . | . . . Uniques/NPCs Destroyed . | . . . Combat | -11 -10 -9 -------- Run | Yrd Mat Mat Hostile Shots Fired 125 | . 13 112 Missed 29 | . 4 25 Damage Taken 1165 | . 85 1080 Core 222 | . 22 200 Absorbed by Shields . | . . . Redirected to Shielding 106 | . 10 96 Core Remaining (%) 95 | 100 91 . Volleys Fired 102 | . 15 87 Largest 2 | . 2 2 Hottest 40 | . 40 40 Shots Fired 191 | . 30 161 Gun 191 | . 30 161 Cannon . | . . . Launcher . | . . . Special . | . . . Kinetic 191 | . 30 161 Thermal . | . . . Explosive . | . . . Electromagnetic . | . . . Robot Hit Streak 16 | . 6 16 Robot Miss Streak 4 | . 4 4 Penetration Max . | . . . Secondary Targets 2 | . . 2 Max Gunslinging Chain 1 | . . 1 Shots Hit Robots 121 | . 13 108 Core Hits 38 | . 9 29 Critical Kills . | . . . Critical Parts Destroyed . | . . . Critical Strikes . | . . . Melee Attacks . | . . . Impact . | . . . Slashing . | . . . Piercing . | . . . Sneak Attacks . | . . . Combat Hostiles . | . . . Follow-up Attacks . | . . . Damage Inflicted 957 | . 116 841 Guns 957 | . 116 841 Cannons . | . . . Explosions . | . . . Melee . | . . . Ramming . | . . . Kinetic 957 | . 116 841 Thermal . | . . . Explosive . | . . . Electromagnetic . | . . . Impact . | . . . Slashing . | . . . Piercing . | . . . Highest Corruption . | . . . Average Corruption . | . . . Corruption Purged . | . . . Corruption Blocked . | . . . Overload Shots . | . . . Overflow Damage . | . . . Projectiles . | . . . Explosions . | . . . Melee . | . . . Knockbacks . | . . . Impact . | . . . Kinetic . | . . . Secondary . | . . . Self-Inflicted Damage . | . . . Shots . | . . . Rammed . | . . . Targets Rammed . | . . . Kicked . | . . . Crushed . | . . . Highest Temperature 6 | . 1 6 Average Temperature 1 | . 1 1 Received Heat Transfer 393 | . 18 375 Siege Activations . | . . . Robots Corrupted . | . . . Combat Hostiles . | . . . Parts Fried . | . . . Impact Corruptions . | . . . Robots Melted . | . . . Combat Hostiles . | . . . Parts Melted . | . . . Heat Transferred . | . . . Parts Sabotaged . | . . . Parts Stolen . | . . . Parts Stripped . | . . . Power Chain Reactions . | . . . Alert | -11 -10 -9 ------- Run | Yrd Mat Mat Peak Influence 269 | . 82 269 Initial 34 | . . 34 Average 52 | . 11 79 Maximum Alert Level 1 | . . 1 Low Security (%) 96 | 100 100 93 Level 1 3 | . . 6 Level 2 . | . . . Level 3 . | . . . Level 4 . | . . . Level 5 . | . . . High Security . | . . . Max Security . | . . . Squads Dispatched 2 | . 1 1 Investigation 1 | . . 1 Extermination . | . . . Reinforcement 1 | . 1 . Assault . | . . . Garrison . | . . . Intercept . | . . . Searches Triggered . | . . . Construction Impeded . | . . . Haulers Reinforced . | . . . Active Scanning Responses . | . . . Cargo Convoy Interrupts . | . . . Stealth | -11 -10 -9 --------- Run | Yrd Mat Mat Distress Signals . | . . . Communications Jammed . | . . . Distress Signals . | . . . Times Spotted 24 | . 6 18 Peak Tracking Total 5 | . 3 5 Tactical Retreats . | . . . Traps | -11 -10 -9 ------- Run | Yrd Mat Mat Traps Triggered 1 | . . 1 Indirectly . | . . . Trap Hack Attempts . | . . . Triggered . | . . . Disarmed . | . . . Reprogrammed . | . . . Reused . | . . . Traps Extracted . | . . . Installed . | . . . Triggered . | . . . Machines | -11 -10 -9 ---------- Run | Yrd Mat Mat Machines Disabled . | . . . Max in Single Turn . | . . . Machines Repaired . | . . . Machines Dismantled . | . . . Machines Sabotaged . | . . . Overloaded Fab Kills . | . . . Hacking | -11 -10 -9 --------- Run | Yrd Mat Mat Machines Accessed 1 | . . 1 Terminals 1 | . . 1 Fabricators . | . . . Repair Stations . | . . . Recycling Units . | . . . Scanalyzers . | . . . Garrison Access . | . . . Total Hacks 6 | . . 6 Successful 3 | . . 3 Failed 3 | . . 3 Catastrophic . | . . . Database Lockouts . | . . . Manual . | . . . Terminals 6 | . . 6 Fabricators . | . . . Repair Stations . | . . . Recycling Units . | . . . Scanalyzers . | . . . Garrison Access . | . . . Terminal Hacks 3 | . . 3 Alert Level 2 | . . 2 Unreport Threat 1 | . . 1 Fabricator Hacks . | . . . Repair Station Hacks . | . . . Recycling Unit Hacks . | . . . Scanalyzer . | . . . Garrison Access Hacks . | . . . Unauthorized Hacks . | . . . Terminals . | . . . Fabricators . | . . . Repair Stations . | . . . Recycling Units . | . . . Scanalyzers . | . . . Garrison Access . | . . . Data Cores Recovered . | . . . Used . | . . . Hacking Detections 1 | . . 1 Full Trace Events 1 | . . 1 Feedback Events . | . . . Feedback Blocked . | . . . Robot Schematics Acquired . | . . . Robots Built . | . . . Authchips . | . . . Time . | . . . Total Robot Build Rating . | . . . Part Schematics Acquired . | . . . Parts Built . | . . . Authchips . | . . . Time . | . . . Total Part Build Rating . | . . . Parts Repaired . | . . . Time . | . . . Parts Recycled . | . . . Recycled Matter . | . . . Retrieved Matter . | . . . Retrieved Components . | . . . Parts Scanalyzed . | . . . Part Schematics Acquired . | . . . Parts Damaged . | . . . Bothacking | -11 -10 -9 ------------ Run | Yrd Mat Mat Used RIF Installer . | . . . Robots Hacked . | . . . Non-combat . | . . . Combat . | . . . Robot Hacks Applied . | . . . Relay Couplers Released . | . . . Fabnet Peak Effective % . | . . . Robots Rewired . | . . . Allies Hacked . | . . . Hacks Repelled . | . . . Allies | -11 -10 -9 -------- Run | Yrd Mat Mat Total Allies . | . . . Largest Group . | . . . Highest-Rated Group . | . . . Highest-Rated Ally . | . . . Total Orders . | . . . Ally Attacks . | . . . Total Damage . | . . . Kills . | . . . Allies Corrupted . | . . . Allies Melted . | . . . Intel | -11 -10 -9 ------- Run | Yrd Mat Mat Robot Analysis Total . | . . . Derelict Logs Recovered . | . . . Drone Launches . | . . . Drone Recoveries . | . . . Exploration | -11 -10 -9 ------------- Run | Yrd Mat Mat Turns Passed 840 | 56 269 515 Spaces Moved 364 | 38 196 130 Core 18 | 13 5 . Treads 58 | 25 33 . Legs . | . . . Wheels 288 | . 158 130 Hover . | . . . Flight . | . . . Fastest Speed 50 | 50 90 90 Average Speed 103 | 122 103 98 Slowest Speed 160 | 160 160 105 Overloaded Moves . | . . . Propulsion Burnouts . | . . . Robots Hopped . | . . . Cave-ins Triggered . | . . . Exploration Rate (%) 17 | 3 29 19 Regions Visited 2 Branch Regions . Pre-discovered Areas . | . . . Known Exits Taken . | . . . Unknown Exits Taken 2 | 1 1 . Scrap Searched . | . . . Spaces Dug . | . . . Terrain Destroyed . | . . . Melee . | . . . Projectile . | . . . AOE . | . . . Terrain Rammed . | . . . Walls Destroyed . | . . . Machines Disabled . | . . . Actions | -11 -10 -9 --------- Run | Yrd Mat Mat Total 674 | 48 239 387 Wait 164 | . 17 147 Move 362 | 37 195 130 Hop . | . . . Pick Up 19 | 6 5 8 Fast Attach 3 | . 2 1 Attach 11 | 5 1 5 Detach 2 | . 2 . Swap 4 | . . 4 Drop 7 | . 2 5 Fire 102 | . 15 87 Melee . | . . . Ram . | . . . Kick . | . . . Crush . | . . . Escape Stasis . | . . . Rewire . | . . . Trap . | . . . Miscellaneous . | . . . Route ------- -11/Scrapyard -10/Materials -9/Materials (discovered 1 exit: [*Min]) History --------- Turn | Location | Event 8 | -11/Scrapyard | Discovered new exit (range 15) 57 | -11/Scrapyard | Entered Materials 317 | -10/Materials | Build established: Mutant 321 | -10/Materials | Discovered new exit (range 4) 326 | -10/Materials | Entered another Materials area 326 | -9/Materials | Evolved 2 slots: Utility x2 561 | -9/Materials | Discovered new exit (range 11) 764 | -9/Materials | Lost 4 parts (1p2u1w) 841 | -9/Materials | Self-destructed Last Messages --------------- 00767_ Acquired 2 matter. 00774_ Lgt. Assault Rifle destroyed. 00775_ Acquired 1 matter. 00779_ Acquired 10 matter. 00781_ Acquired 2 matter. 00790_ Y-45 Defender destroyed. 00791_ Acquired 2 matter. 00802_ K-01 Serf collects debris. 00810_ Sensor Array destroyed. 00810_ K-01 Serf collects debris. 00815_ K-01 Serf destroyed. 00815_ Switching to secondary target: G-34 Mercenary. 00817_ K-01 Serf collects debris. 00821_ Arm. Wheel destroyed. 00823_ Lgt. Armor Plating destroyed. 00823_ K-01 Serf collects debris. 00837_ Arm. Wheel destroyed. 00838_ K-01 Serf collects debris. 00839_ Lgt. Assault Rifle destroyed. Map ----- +----------------------------------------------------+ | ??## = ## !#????????????????????????????????????? | | ??# =%[ !#????????????????????????????????????? | | ??# ! !#????????????????????????????????????? | | ??# !##????????????????????????????????????? | | ??# ####?????????????????????????????????????? | | ??# #????????????????????????????????????????? | | ?####+###????????????????????????????????????????? | | ?# ############+#####???????????????????????? | | ?# #* = ^ ??????????????????????? | | ?# = # =%! [ ^^ #?????????????????????? | | ?# = +% T % ^^ ??????????????????????? | | ?# %# ####??? ??????????????????????? | | ?# # #?????# #?????????????????????? | | ?###+#### #?????# +?????????????????????? | | ????????# #?????# g #?????????????????????? | | ????????# #?????? ??????????????????????? | | ????????# #?????? ??????????????????????? | | ????????# ####= ##????? ??????????????????????? | | ????????# #"""= #????? ??????????????????????? | | ????????# #" = #????? !w??????????????????????? | | ???????? #"| #?????=!=??????????????????????? | | ???????? #"" < #?????#%#??????????????????????? | | ??????? #"! #?????#=#??????????????????????? | | ???????## #" #?????#[#??????????????????????? | | ????????# #""" #?????#[#??????????????????????? | | ????????# #### ########@##?????????????????????? | | ????????# # k*#?????????????????????? | | ????????# + =!%#?????????????????????? | | ????????# """ # """ ""* #?????????????????????? | | ????????# """ # """ """ #?????????????????????? | | ????????# """ # """ """ #?????????????????????? | | ????????# !# """ """ #?????????????????????? | | ????????+ ! # """ """ #?????????????????????? | | ????????# """* +[ #?????????????????????? | | ????????# """ ###########?????????????????????? | | ???????# """ #???????????????????????????????? | | ???????# #???????????????????????????????? | | ???????+ ???????????????????????????????? | | ???????# """ ???????????????????????????????? | | ???????# """ ??????????????????????????????? | | ???????# """ ??????????????????????????????? | | ???????# ?????????????????????????????? | | ???????# ?? ?????????????????????????????? | | ???????????""" ????????????????????????????? | | ???????????""" ????????????????????????????? | | ?????????????" ???????????????????????????? | | ????????????? ???????????????????????????? | | ????????????? ?????????????????????????????? | | ?????????????T" ?????????????????????????????? | | ??????????????? ??????????????????????????????? | +----------------------------------------------------+ Best States ------------- Heat Dissipation 28 Energy Generation 10 Energy Capacity 125 Matter Stores 300 Matter Capacity 300 Sight Range 16 Robot Scan Range 14 Terrain Scan Density 10 Armor Coverage 150 Propulsion Shielding 33 Weapon Shielding 33 Evasion (%) 50 Recoil Reduction 2 Item Schematics ----------------- None Robot Schematics ------------------ None Fabricated ------------ Nothing Alien Tech Used ----------------- None Achievements -------------- None Challenges ------------ None Game ------ Seed LauncherTiamatDetector Manual? 0 Play Time 00:12:18 Cumulative 7.5 hours Start 2024.06.01 @ 20:12:28 End 2024.06.01 @ 20:32:36 Sessions 1 Manual Loads 0 Difficulty Rogue Special Mode None Game No. 17 Rogue 17 Adventurer 0 Explorer 0 Win Type - Total 0 Types 0/0/0/0/0/0/0/0/0 Lore% 5 Gallery% 12 Achievement% 10 Wizard Run 0 Options --------- Layout 1 ASCII 0 Keyboard 0 Movement Mouse Keybinds 0 Fullscreen 2 Font 24/Terminus Map View 50x35 Zoom Use 0% Tactical HUD 1 Map Filters NONE Filters NONE Steam 1 RUN: e8a9a6a0-ffc9-4a49-9fe9-06c2e64e4d32